Cogmind - Beta 13 @@@ ROGUE MODE // 2024.04.04 @ 18:54:22 Player: SPRING Result: Destroyed by G-47 Trooper with Particle Gun Performance ------------- Evolutions (0) 0 Regions Visited (2) 400 Robots Destroyed (39) 195 Value Destroyed (766) 766 Prototype IDs (2) 40 Alien Tech Used (0) 0 Bonus (0) 0 TOTAL SCORE: 1401 Bonus ------- None Cogmind --------- Core Integrity 0/250 Matter 293/300 Energy 125/125 System Corruption 0% Temperature Cool (9) Movement Treading (240) Ox1 Location -10/Mines Parts ------- > --- POWER (1) -------- Light Ion Engine > --- PROPULSION (2) --- Light Treads Light Treads > --- UTILITY (2) ------ High-capacity Storage Unit Sensor Array > --- WEAPON (2) ------- Assault Rifle Light Cannon > --- INVENTORY (20) --- Ion Engine Ion Engine Light Ion Engine Light Ion Engine Light Treads Flight Unit Flight Unit Small Storage Unit Compact Matter Pod (150) Weight Redist. System Weight Redist. System Signal Interpreter Transport Network Coupler ECM Suite Core Shielding Hacking Suite Hacking Suite Light Assault Rifle Light Cannon Mining Laser Peak State ------------ > --- POWER ------------ Ion Engine > --- PROPULSION ------- Light Treads Light Treads > --- UTILITY ---------- High-capacity Storage Unit Sensor Array > --- WEAPON ----------- Assault Rifle Light Assault Rifle > --- INVENTORY -------- Ion Engine Light Ion Engine Light Treads Flight Unit Small Storage Unit Large Storage Unit Weight Redist. System Weight Redist. System Signal Interpreter Transport Network Coupler ECM Suite Hacking Suite Hacking Suite Light Cannon Light Cannon Mining Laser [Rating: 9] Favorites ----------- Power Ion Engine Engine Ion Engine Propulsion Light Treads Treads Light Treads Utility Sensor Array Device Sensor Array Storage High-capacity Storage Unit Weapon Light Assault Rifle Ballistic Gun Light Assault Rifle Ballistic Cannon Light Cannon Special Weapon Mining Laser Build | -11 -10 -10 ------- Run | Yrd Mat Min Slots Evolved . | . . . Power . | . . . Propulsion . | . . . Utility . | . . . Weapon . | . . . Parts Attached 26 | 7 18 1 Power 5 | 1 3 1 Engine 5 | 1 3 1 Core . | . . . Reactor . | . . . Propulsion 6 | 2 4 . Treads 6 | 2 4 . Leg . | . . . Wheel . | . . . Hover . | . . . Flight . | . . . Utility 6 | 2 4 . Device 3 | 1 2 . Storage 3 | 1 2 . Processor . | . . . Hackware . | . . . Protection . | . . . Artifact . | . . . Weapon 9 | 2 7 . Energy Gun . | . . . Energy Cannon . | . . . Ballistic Gun 4 | 2 2 . Ballistic Cannon 4 | . 4 . Launcher . | . . . Special Weapon 1 | . 1 . Impact Weapon . | . . . Slashing Weapon . | . . . Piercing Weapon . | . . . Special Melee Weapon . | . . . Unidentified Prototypes . | . . . Parts Lost 4 | . 4 . Power 1 | . 1 . Propulsion 1 | . 1 . Utility 1 | . 1 . Weapon 1 | . 1 . Highest Loss Streak 1 | . 1 . To Critical Strikes . | . . . Average Slot Usage (%) 99 | . 99 100 Engine 13 | . 13 14 Treads 27 | . 27 28 Device 13 | . 13 14 Storage 14 | . 14 14 Ballistic Gun 19 | . 21 14 Ballistic Cannon 7 | . 6 14 Naked Turns . | . . . Heaviest Build 51 | 11 51 51 Greatest Support 40 | 40 40 40 Greatest Overweight (x) 2 | . 2 1 Average Overweight (x) . | . . 1 Largest Inventory Capacity 20 | 8 20 20 Average Capacity 17 | 7 16 20 Most Carried 20 | 5 17 20 Average Carried 14 | 3 13 18 Final Capacity 20 | 8 20 20 Final Carried 20 | 5 16 20 Class Distribution -------------------- 100% | Mutant Dominant Class ---------------- Mutant | -10/Materials Mutant | -10/Mines Resources | -11 -10 -10 ----------- Run | Yrd Mat Min Matter Collected 848 | 238 469 141 Remotely . | . . . Salvage Created 1025 | 27 896 102 Parts 74 | 2 60 12 Haulers Intercepted 2 | . 2 . Recyclers Shooed 1 | . 1 . Parts Field Recycled . | . . . Retrieved Matter . | . . . Parts Self-Destructed . | . . . Prevented . | . . . Kills | -11 -10 -10 ------- Run | Yrd Mat Min Combat Hostiles Destroyed 29 | . 21 8 Guns 17 | . 14 3 Cannons 12 | . 7 5 Classes Destroyed 7 | 1 6 . Tunneler 1 | 1 . . Hauler 2 | . 2 . Recycler 2 | . 2 . Operator 2 | . 2 . Watcher 3 | . 3 . Swarmer 14 | . 6 8 Grunt 15 | . 15 . Best Kill Streak 4 | 1 4 3 Combat Bots Only 4 | . 4 3 Max Kills in Single Turn 1 | 1 1 1 Gunslinging . | . . . Exploded . | . . . Melee . | . . . Uniques/NPCs Destroyed . | . . . Combat | -11 -10 -10 -------- Run | Yrd Mat Min Hostile Shots Fired 151 | . 116 35 Missed 45 | . 32 13 Damage Taken 1048 | . 859 189 Core 251 | . 196 55 Absorbed by Shields . | . . . Regen/Repaired (Parts) 120 | . 120 . Core Remaining (%) 100 | 100 . . Volleys Fired 146 | 5 127 14 Largest 2 | 2 2 2 Hottest 100 | 40 100 55 Shots Fired 249 | 10 211 28 Gun 213 | 10 189 14 Cannon 35 | . 21 14 Launcher . | . . . Special 1 | . 1 . Kinetic 248 | 10 210 28 Thermal 1 | . 1 . Explosive . | . . . Electromagnetic . | . . . Robot Hit Streak 12 | 2 12 5 Robot Miss Streak 6 | 2 6 2 Penetration Max . | . . . Secondary Targets . | . . . Shots Hit Robots 153 | 5 132 16 Core Hits 70 | 1 60 9 Critical Kills . | . . . Critical Parts Destroyed . | . . . Critical Strikes . | . . . Melee Attacks . | . . . Impact . | . . . Slashing . | . . . Piercing . | . . . Sneak Attacks . | . . . Combat Hostiles . | . . . Follow-up Attacks . | . . . Damage Inflicted 1551 | 45 1269 237 Guns 1137 | 45 979 113 Cannons 413 | . 289 124 Explosions . | . . . Melee . | . . . Ramming 1 | . 1 . Kinetic 1550 | 45 1268 237 Thermal . | . . . Explosive . | . . . Electromagnetic . | . . . Impact . | . . . Slashing . | . . . Piercing . | . . . Highest Corruption . | . . . Average Corruption . | . . . Corruption Purged . | . . . Corruption Blocked . | . . . Overload Shots . | . . . Overflow Damage . | . . . Projectiles . | . . . Explosions . | . . . Melee . | . . . Knockbacks 4 | . 4 . Impact . | . . . Kinetic 4 | . 4 . Secondary . | . . . Self-Inflicted Damage . | . . . Shots . | . . . Rammed 2 | . 2 . Targets Rammed 2 | . 2 . Kicked . | . . . Crushed . | . . . Highest Temperature 40 | . 40 . Average Temperature 12 | . 12 . Received Heat Transfer 372 | . 348 24 Siege Activations . | . . . Robots Corrupted . | . . . Combat Hostiles . | . . . Parts Fried . | . . . Impact Corruptions . | . . . Robots Melted . | . . . Combat Hostiles . | . . . Parts Melted . | . . . Heat Transferred . | . . . Parts Sabotaged . | . . . Parts Stolen . | . . . Parts Stripped . | . . . Power Chain Reactions . | . . . Alert | -11 -10 -10 ------- Run | Yrd Mat Min Peak Influence 204 | 5 201 204 Initial 9 | . 3 9 Average 55 | 2 52 76 Maximum Alert Level 1 | . 1 1 Low Security (%) 94 | 100 99 77 Level 1 5 | . . 22 Level 2 . | . . . Level 3 . | . . . Level 4 . | . . . Level 5 . | . . . High Security . | . . . Max Security . | . . . Squads Dispatched 5 | . 5 . Investigation 3 | . 3 . Extermination . | . . . Reinforcement 2 | . 2 . Assault . | . . . Garrison . | . . . Intercept . | . . . Searches Triggered . | . . . Construction Impeded . | . . . Haulers Reinforced . | . . . Active Scanning Responses . | . . . Cargo Convoy Interrupts . | . . . Stealth | -11 -10 -10 --------- Run | Yrd Mat Min Distress Signals 2 | . 2 . Communications Jammed . | . . . Distress Signals . | . . . Times Spotted 45 | . 35 10 Peak Tracking Total 5 | . 5 3 Tactical Retreats 1 | . 1 . Traps | -11 -10 -10 ------- Run | Yrd Mat Min Traps Triggered 5 | . 5 . Indirectly . | . . . Trap Hack Attempts . | . . . Triggered . | . . . Disarmed . | . . . Reprogrammed . | . . . Reused . | . . . Traps Extracted . | . . . Installed . | . . . Triggered . | . . . Machines | -11 -10 -10 ---------- Run | Yrd Mat Min Machines Disabled . | . . . Max in Single Turn . | . . . Machines Repaired . | . . . Machines Dismantled . | . . . Machines Sabotaged . | . . . Overloaded Fab Kills . | . . . Hacking | -11 -10 -10 --------- Run | Yrd Mat Min Machines Accessed 9 | . 9 . Terminals 7 | . 7 . Fabricators . | . . . Repair Stations 1 | . 1 . Recycling Units 1 | . 1 . Scanalyzers . | . . . Garrison Access . | . . . Total Hacks 25 | . 25 . Successful 11 | . 11 . Failed 13 | . 13 . Catastrophic 3 | . 3 . Database Lockouts 1 | . 1 . Manual 13 | . 13 . Terminals 20 | . 20 . Fabricators . | . . . Repair Stations 4 | . 4 . Recycling Units 1 | . 1 . Scanalyzers . | . . . Garrison Access . | . . . Terminal Hacks 6 | . 6 . Record 1 | . 1 . Part Schematic 1 | . 1 . Prototype ID Bank 1 | . 1 . Alert Level 1 | . 1 . Transport Status 1 | . 1 . Recall Investigation 1 | . 1 . Fabricator Hacks . | . . . Repair Station Hacks 4 | . 4 . Scan Component 2 | . 2 . Repair 2 | . 2 . Recycling Unit Hacks 1 | . 1 . Report Inventory 1 | . 1 . Scanalyzer . | . . . Garrison Access Hacks . | . . . Unauthorized Hacks . | . . . Terminals . | . . . Fabricators . | . . . Repair Stations . | . . . Recycling Units . | . . . Scanalyzers . | . . . Garrison Access . | . . . Data Cores Recovered . | . . . Used . | . . . Hacking Detections 8 | . 8 . Full Trace Events 1 | . 1 . Feedback Events . | . . . Feedback Blocked . | . . . Robot Schematics Acquired . | . . . Robots Built . | . . . Authchips . | . . . Time . | . . . Total Robot Build Rating . | . . . Part Schematics Acquired 1 | . 1 . Parts Built . | . . . Authchips . | . . . Time . | . . . Total Part Build Rating . | . . . Parts Repaired 2 | . 2 . Time 52 | . 52 . Parts Recycled . | . . . Recycled Matter . | . . . Retrieved Matter . | . . . Retrieved Components . | . . . Parts Scanalyzed . | . . . Part Schematics Acquired . | . . . Parts Damaged . | . . . Bothacking | -11 -10 -10 ------------ Run | Yrd Mat Min Used RIF Installer . | . . . Robots Hacked . | . . . Non-combat . | . . . Combat . | . . . Robot Hacks Applied . | . . . Relay Couplers Released . | . . . Fabnet Peak Effective % . | . . . Robots Rewired . | . . . Allies Hacked . | . . . Hacks Repelled . | . . . Allies | -11 -10 -10 -------- Run | Yrd Mat Min Total Allies . | . . . Largest Group . | . . . Highest-Rated Group . | . . . Highest-Rated Ally . | . . . Total Orders . | . . . Ally Attacks . | . . . Total Damage . | . . . Kills . | . . . Allies Corrupted . | . . . Allies Melted . | . . . Intel | -11 -10 -10 ------- Run | Yrd Mat Min Robot Analysis Total . | . . . Derelict Logs Recovered 2 | . . 2 Drone Launches . | . . . Drone Recoveries . | . . . Exploration | -11 -10 -10 ------------- Run | Yrd Mat Min Turns Passed 3849 | 144 2796 909 Spaces Moved 1496 | 77 1063 356 Core 6 | 6 . . Treads 1490 | 71 1063 356 Legs . | . . . Wheels . | . . . Hover . | . . . Flight . | . . . Fastest Speed 50 | 50 160 240 Average Speed 217 | 151 214 240 Slowest Speed 320 | 160 320 240 Overloaded Moves . | . . . Propulsion Burnouts . | . . . Robots Hopped . | . . . Cave-ins Triggered . | . . . Exploration Rate (%) 57 | 6 98 68 Regions Visited 2 Branch Regions 1 Pre-discovered Areas . | . . . Known Exits Taken . | . . . Unknown Exits Taken 2 | 1 1 . Scrap Searched 1 | . . 1 Spaces Dug 1 | . 1 . Terrain Destroyed 1 | . 1 . Melee . | . . . Projectile 1 | . 1 . AOE . | . . . Terrain Rammed . | . . . Walls Destroyed . | . . . Machines Disabled . | . . . Actions | -11 -10 -10 --------- Run | Yrd Mat Min Total 1871 | 93 1394 384 Wait 170 | . 160 10 Move 1494 | 76 1062 356 Hop . | . . . Pick Up 25 | 5 17 3 Fast Attach 13 | 7 6 . Attach 4 | . 4 . Detach 1 | . 1 . Swap 9 | . 8 1 Drop 7 | . 7 . Fire 146 | 5 127 14 Melee . | . . . Ram . | . . . Kick . | . . . Crush 2 | . 2 . Escape Stasis . | . . . Rewire . | . . . Trap . | . . . Miscellaneous . | . . . Route ------- -11/Scrapyard -10/Materials (discovered 4 exits: [*Mat x3] / [*Min]) -10/Mines (discovered 1 exit: [*Mat]) History --------- Turn | Location | Event 14 | -11/Scrapyard | Discovered new exit (range 15) 145 | -11/Scrapyard | Entered Materials 317 | -10/Materials | Build established: Mutant 484 | -10/Materials | Discovered new exit (range 14) 835 | -10/Materials | Repaired Lgt. Treads 907 | -10/Materials | Core integrity fell below 50% 1006 | -10/Materials | Discovered new exit (range 16) 1768 | -10/Materials | Discovered new exit (range 16) 1965 | -10/Materials | Central database locked down 2301 | -10/Materials | Discovered new exit (range 15) 2549 | -10/Materials | Repaired Mining Laser 2941 | -10/Materials | Entered Mines 2950 | -10/Mines | Core integrity fell below 20% 3040 | -10/Mines | Discovered new exit (range 6) 3176 | -10/Mines | Learned Materials security intel 3473 | -10/Mines | Learned Materials emergency access door positions 3850 | -10/Mines | Destroyed by G-47 Trooper with Particle Gun Last Messages --------------- 03028_ K-01 Serf collects debris. 03035_ Acquired 23 matter. 03037_ Acquired 2 matter. 03040_ Acquired 1 matter. 03040_ EXIT=FOUND 03042_ Acquired 20 matter. 03135_ S-10 Pest destroyed. 03145_ Acquired 27 matter. 03176_ Acquired derelict log, extracted data. Data stored: Materials security intel. 03416_ Searching scrap... 03416_ Found ECM Suite. 03416_ Found Com. Wheel. 03416_ Found Hcp. Battery. 03416_ Found 30 Matter. 03417_ Acquired 29 matter. 03473_ Acquired derelict log, extracted data. Data stored: Materials emergency access points. 03711_ Acquired Com. Matter Pod. 03750_ K-01 Serf cleans the Laser Drill. Map ----- +----------------------------------------------------+ | ????## ###?????????????????????? | | ????# ####??????????????????? | | ????## ##?????????????????? | | ?????## ###???????????????? | | ??????### """ ##??????????????? | | ????????## """ #??????????????? | | ?????????# """ ##?????????????? | | ?????????# #?????????????? | | ?????????# #?????????????? | | ?????????# #?????????????? | | ?????????# #?????????????? | | ?????????# ## #?????????????? | | ?????????# ##?# #????????????? | | ????????## #??? #???????????? | | ???????## ##??? #??????????? | | ??????## ##??? ??????????? | | ??????# #??? #???????????? | | ??????# #???? #????????????? | | ??????## # ##???????????????????? | | ???????## # #????????????????????? | | ????????# # #????????????????????? | | ????###?# # #####????????????????? | | ???## ## # #####????????????? | | ???# % #????????????? | | ???# gg ???????? | | ???## @### ???????? | | ????## ##??# ???????? | | ?????### ##???#??# ????????? | | ???????## ##????????#????????????? | | ????????## ##????????????????????? | | ?????????# #????????????????????? | | ?????????# #????????????????????? | | ?????????# #????????????????????? | | ?????????## ##????????????????????? | | ???????????###?????????????????????? | | ???????????????????????????????????? | | ???????????????????????????????????? | | | | | | | | | | | | | | | | | | | | | | | | | | | +----------------------------------------------------+ Best States ------------- Heat Dissipation 25 Energy Generation 10 Energy Capacity 250 Matter Stores 300 Matter Capacity 300 Sight Range 16 Robot Scan Range 14 Terrain Scan Density 10 Evasion (%) 40 Recoil Reduction 2 Item Schematics ----------------- Utility Shielding | -10/Materials | Hacked Robot Schematics ------------------ None Fabricated ------------ Nothing Alien Tech Used ----------------- None Achievements -------------- None Challenges ------------ None Game ------ Seed asdwasd Manual? 1 Play Time 00:21:58 Cumulative 24.1 hours Start 2024.04.04 @ 18:34:52 End 2024.04.04 @ 18:54:22 Sessions 1 Manual Loads 0 Difficulty Rogue Special Mode None Game No. 16 Rogue 16 Adventurer 0 Explorer 0 Win Type - Total 0 Types 0/0/0/0/0/0/0/0/0 Lore% 17 Gallery% 21 Achievement% 19 Wizard Run 0 Options --------- Layout 0 ASCII 0 Keyboard 1 Movement Numpad Keybinds 0 Fullscreen 2 Font 24/Smallcaps Map View 76x56 Zoom Use 0% Tactical HUD 1 Map Filters NONE Filters NONE Steam 1 RUN: 1540fdce-035a-4f7d-b753-4f2e08eb0845